[Event "Titled Tuesday Blitz March 22 Late 2022"]
[White "Prohorov, Olexandr"]
[Black "Ezat, Mohamed"]
[WhiteFideId "14105578"]
[BlackFideId "10600906"]
[WhiteElo "1993"]
[BlackElo "2386"]
[Result "0-1"]
[Round "10"]
[TimeControl "180+1"]
[Date "2022.03.22"]
[WhiteClock "0:01:00"]
[BlackClock "0:02:04"]

1. e4 {[%clk 0:03:00]}  c5 {[%clk 0:02:54]} 2. c3 {[%clk 0:03:01]}  d5 {[%clk 0:02:52]} 3. exd5 {[%clk 0:03:01]}  Qxd5 {[%clk 0:02:53]} 4. d4 {[%clk 0:03:01]}  Nc6 {[%clk 0:02:52]} 5. Nf3 {[%clk 0:03:00]}  Bg4 {[%clk 0:02:51]} 6. Be2 {[%clk 0:02:57]}  cxd4 {[%clk 0:02:50]} 7. cxd4 {[%clk 0:02:57]}  e5 {[%clk 0:02:50]} 8. Nc3 {[%clk 0:02:41]}  Bb4 {[%clk 0:02:48]} 9. O-O {[%clk 0:02:41]}  Bxc3 {[%clk 0:02:48]} 10. bxc3 {[%clk 0:02:40]}  exd4 {[%clk 0:02:48]} 11. cxd4 {[%clk 0:02:36]}  Nge7 {[%clk 0:02:48]} 12. h3 {[%clk 0:02:33]}  Bh5 {[%clk 0:02:46]} 13. Rb1 {[%clk 0:02:30]}  O-O {[%clk 0:02:45]} 14. Rb5 {[%clk 0:02:25]}  Bxf3 {[%clk 0:02:41]} 15. Bxf3 {[%clk 0:02:24]}  Qxb5 {[%clk 0:02:40]} 16. d5 {[%clk 0:02:14]}  Rad8 {[%clk 0:02:38]} 17. a4 {[%clk 0:02:06]}  Qc4 {[%clk 0:02:30]} 18. Ba3 {[%clk 0:02:07]}  Rfe8 {[%clk 0:02:27]} 19. d6 {[%clk 0:02:03]}  Nf5 {[%clk 0:02:25]} 20. d7 {[%clk 0:02:02]}  Re5 {[%clk 0:02:20]} 21. Bb2 {[%clk 0:02:01]}  Re7 {[%clk 0:02:17]} 22. Bg4 {[%clk 0:01:48]}  Rdxd7 {[%clk 0:02:15]} 23. Qb1 {[%clk 0:01:41]}  Ncd4 {[%clk 0:02:13]} 24. Bxf5 {[%clk 0:01:36]}  Nxf5 {[%clk 0:02:13]} 25. Qxf5 {[%clk 0:01:36]}  Qxf1+ {[%clk 0:02:13]} 26. Kh2 {[%clk 0:01:18]}  Qa6 {[%clk 0:02:12]} 27. Qg5 {[%clk 0:01:11]}  Qg6 {[%clk 0:02:11]} 28. Qf4 {[%clk 0:01:08]}  h6 {[%clk 0:02:10]} 29. Qb8+ {[%clk 0:00:59]}  Kh7 {[%clk 0:02:09]} 30. Qf8 {[%clk 0:01:00]}  Re2 {[%clk 0:02:04]} 0-1


[Site "https://www.chess.com"]

[Event "Titled Tuesday Blitz March 22 Late 2022"]
[White "Rosen, Eric"]
[Black "Mekhitarian, Krikor Sevag"]
[WhiteFideId "2032562"]
[BlackFideId "2107660"]
[WhiteElo "2362"]
[BlackElo "2598"]
[Result "0-1"]
[Round "10"]
[TimeControl "180+1"]
[Date "2022.03.22"]
[WhiteClock "0:00:01"]
[BlackClock "0:00:04"]

1. d4 {[%clk 0:03:00]}  Nf6 {[%clk 0:02:59]} 2. Bf4 {[%clk 0:03:00]}  c5 {[%clk 0:02:59]} 3. e3 {[%clk 0:03:00]}  g6 {[%clk 0:02:55]} 4. c3 {[%clk 0:02:58]}  Bg7 {[%clk 0:02:53]} 5. Nd2 {[%clk 0:02:58]}  d6 {[%clk 0:02:50]} 6. Bc4 {[%clk 0:02:57]}  O-O {[%clk 0:02:49]} 7. Ngf3 {[%clk 0:02:57]}  Nc6 {[%clk 0:02:22]} 8. dxc5 {[%clk 0:02:56]}  dxc5 {[%clk 0:02:22]} 9. O-O {[%clk 0:02:57]}  Nd5 {[%clk 0:02:12]} 10. Bg3 {[%clk 0:02:56]}  Nb6 {[%clk 0:02:12]} 11. Bb5 {[%clk 0:02:55]}  Nb8 {[%clk 0:01:37]} 12. Qc2 {[%clk 0:02:53]}  a6 {[%clk 0:01:35]} 13. Be2 {[%clk 0:02:52]}  Be6 {[%clk 0:01:23]} 14. Rfd1 {[%clk 0:02:46]}  Qc8 {[%clk 0:01:23]} 15. Ng5 {[%clk 0:02:46]}  Bf5 {[%clk 0:01:19]} 16. e4 {[%clk 0:02:43]}  Bd7 {[%clk 0:01:19]} 17. a4 {[%clk 0:02:37]}  h6 {[%clk 0:01:14]} 18. Ngf3 {[%clk 0:02:38]}  Be6 {[%clk 0:01:14]} 19. a5 {[%clk 0:02:36]}  N6d7 {[%clk 0:01:14]} 20. Bc4 {[%clk 0:02:37]}  Bxc4 {[%clk 0:01:08]} 21. Nxc4 {[%clk 0:02:37]}  Nc6 {[%clk 0:01:08]} 22. Rd2 {[%clk 0:02:22]}  Ra7 {[%clk 0:00:44]} 23. Rad1 {[%clk 0:02:17]}  Nf6 {[%clk 0:00:44]} 24. e5 {[%clk 0:01:40]}  Nh5 {[%clk 0:00:44]} 25. Qe4 {[%clk 0:01:41]}  Qe6 {[%clk 0:00:38]} 26. b3 {[%clk 0:01:10]}  f5 {[%clk 0:00:33]} 27. Qe2 {[%clk 0:00:45]}  f4 {[%clk 0:00:28]} 28. Bh4 {[%clk 0:00:46]}  g5 {[%clk 0:00:29]} 29. Nxg5 {[%clk 0:00:17]}  hxg5 {[%clk 0:00:30]} 30. Qxh5 {[%clk 0:00:18]}  gxh4 {[%clk 0:00:27]} 31. Re1 {[%clk 0:00:12]}  Raa8 {[%clk 0:00:24]} 32. Qxh4 {[%clk 0:00:11]}  f3 {[%clk 0:00:24]} 33. Rd3 {[%clk 0:00:10]}  Rad8 {[%clk 0:00:22]} 34. Rde3 {[%clk 0:00:06]}  Qg6 {[%clk 0:00:16]} 35. Qg3 {[%clk 0:00:03]}  Qxg3 {[%clk 0:00:15]} 36. hxg3 {[%clk 0:00:04]}  fxg2 {[%clk 0:00:15]} 37. Kxg2 {[%clk 0:00:05]}  Rd5 {[%clk 0:00:09]} 38. f4 {[%clk 0:00:05]}  Rfd8 {[%clk 0:00:09]} 39. Kf3 {[%clk 0:00:05]}  Rd3 {[%clk 0:00:09]} 40. Ke4 {[%clk 0:00:04]}  Rxe3+ {[%clk 0:00:10]} 41. Kxe3 {[%clk 0:00:05]}  Kf7 {[%clk 0:00:08]} 42. Rh1 {[%clk 0:00:05]}  Kg6 {[%clk 0:00:06]} 43. Ke4 {[%clk 0:00:05]}  Kf7 {[%clk 0:00:03]} 44. g4 {[%clk 0:00:05]}  Rh8 {[%clk 0:00:03]} 45. Rxh8 {[%clk 0:00:04]}  Bxh8 {[%clk 0:00:04]} 46. Kd5 {[%clk 0:00:05]}  Ke8 {[%clk 0:00:04]} 47. Kxc5 {[%clk 0:00:05]}  Kd7 {[%clk 0:00:04]} 48. Kb6 {[%clk 0:00:04]}  Kc8 {[%clk 0:00:04]} 49. g5 {[%clk 0:00:05]}  Bg7 {[%clk 0:00:02]} 50. g6 {[%clk 0:00:05]}  Bf8 {[%clk 0:00:02]} 51. f5 {[%clk 0:00:04]}  Bg7 {[%clk 0:00:03]} 52. b4 {[%clk 0:00:02]}  Nxe5 {[%clk 0:00:03]} 53. Ne3 {[%clk 0:00:02]}  Nd7+ {[%clk 0:00:03]} 54. Ka7 {[%clk 0:00:01]}  Bxc3 {[%clk 0:00:04]} 55. Nd5 {[%clk 0:00:01]}  Bd4+ {[%clk 0:00:04]} 56. Ka8 {[%clk 0:00:01]}  Bf6 {[%clk 0:00:02]} 57. Nxe7+ {[%clk 0:00:01]}  Bxe7 {[%clk 0:00:02]} 58. g7 {[%clk 0:00:01]}  Nf6 {[%clk 0:00:03]} 59. Ka7 {[%clk 0:00:01]}  Ng8 {[%clk 0:00:04]} 60. b5 {[%clk 0:00:01]}  axb5 {[%clk 0:00:03]} 61. Kb6 {[%clk 0:00:01]}  b4 {[%clk 0:00:04]} 0-1


[Site "https://www.chess.com"]

[Event "Titled Tuesday Blitz March 22 Late 2022"]
[White "Rostovtsev, Dmitry"]
[Black "Kamsky, Gata"]
[WhiteFideId "34278320"]
[BlackFideId "2000024"]
[WhiteElo "2359"]
[BlackElo "2645"]
[Result "1/2-1/2"]
[Round "10"]
[TimeControl "180+1"]
[Date "2022.03.22"]
[WhiteClock "0:00:34"]
[BlackClock "0:00:29"]

1. e4 {[%clk 0:03:00]}  c6 {[%clk 0:02:58]} 2. d4 {[%clk 0:02:58]}  d5 {[%clk 0:02:57]} 3. Nc3 {[%clk 0:02:58]}  g6 {[%clk 0:02:57]} 4. Nf3 {[%clk 0:02:57]}  Bg4 {[%clk 0:02:52]} 5. h3 {[%clk 0:02:55]}  Bxf3 {[%clk 0:02:52]} 6. Qxf3 {[%clk 0:02:56]}  e6 {[%clk 0:02:48]} 7. Bd3 {[%clk 0:02:35]}  Nf6 {[%clk 0:02:38]} 8. Bg5 {[%clk 0:02:32]}  Be7 {[%clk 0:02:38]} 9. O-O-O {[%clk 0:02:32]}  dxe4 {[%clk 0:02:34]} 10. Nxe4 {[%clk 0:02:32]}  Nxe4 {[%clk 0:02:34]} 11. Bxe7 {[%clk 0:02:33]}  Qxe7 {[%clk 0:02:34]} 12. Qxe4 {[%clk 0:02:32]}  Nd7 {[%clk 0:02:33]} 13. Kb1 {[%clk 0:02:32]}  O-O-O {[%clk 0:02:33]} 14. c3 {[%clk 0:02:30]}  Kb8 {[%clk 0:02:30]} 15. Rhe1 {[%clk 0:02:29]}  Ka8 {[%clk 0:02:30]} 16. Bc2 {[%clk 0:02:27]}  Qd6 {[%clk 0:02:30]} 17. Qf3 {[%clk 0:02:27]}  Rhf8 {[%clk 0:02:27]} 18. Bb3 {[%clk 0:02:26]}  Nb6 {[%clk 0:02:21]} 19. Qe3 {[%clk 0:02:21]}  h5 {[%clk 0:02:20]} 20. Qf3 {[%clk 0:02:17]}  Nd5 {[%clk 0:02:19]} 21. Bxd5 {[%clk 0:02:16]}  cxd5 {[%clk 0:02:19]} 22. g4 {[%clk 0:02:16]}  hxg4 {[%clk 0:02:14]} 23. hxg4 {[%clk 0:02:16]}  b5 {[%clk 0:02:12]} 24. a3 {[%clk 0:02:13]}  a5 {[%clk 0:02:10]} 25. Rh1 {[%clk 0:02:09]}  Rd7 {[%clk 0:02:10]} 26. Rh7 {[%clk 0:02:07]}  Rb7 {[%clk 0:02:09]} 27. Qg3 {[%clk 0:01:54]}  Qb6 {[%clk 0:01:53]} 28. Rd3 {[%clk 0:01:35]}  Rc8 {[%clk 0:01:51]} 29. Qf4 {[%clk 0:01:28]}  Rcc7 {[%clk 0:01:49]} 30. Rh8+ {[%clk 0:01:27]}  Ka7 {[%clk 0:01:49]} 31. g5 {[%clk 0:01:24]}  Qc6 {[%clk 0:01:47]} 32. Rg8 {[%clk 0:01:15]}  Qc4 {[%clk 0:01:46]} 33. Qd2 {[%clk 0:01:03]}  Rb8 {[%clk 0:01:26]} 34. Rxb8 {[%clk 0:01:02]}  Kxb8 {[%clk 0:01:26]} 35. Qd1 {[%clk 0:00:51]}  Kb7 {[%clk 0:01:21]} 36. Re3 {[%clk 0:00:44]}  Kb6 {[%clk 0:01:20]} 37. Qe2 {[%clk 0:00:43]}  Qxe2 {[%clk 0:01:19]} 38. Rxe2 {[%clk 0:00:43]}  Rc8 {[%clk 0:01:19]} 39. Re3 {[%clk 0:00:42]}  Rh8 {[%clk 0:01:19]} 40. Rf3 {[%clk 0:00:41]}  Rh7 {[%clk 0:01:19]} 41. a4 {[%clk 0:00:34]}  bxa4 {[%clk 0:01:18]} 42. Ka2 {[%clk 0:00:34]}  Kb5 {[%clk 0:00:43]} 43. Ka3 {[%clk 0:00:34]}  Rh1 {[%clk 0:00:43]} 44. Ka2 {[%clk 0:00:35]}  Rh7 {[%clk 0:00:32]} 45. Ka3 {[%clk 0:00:34]}  Rh1 {[%clk 0:00:29]} 46. Ka2 {[%clk 0:00:34]} 1/2-1/2


[Site "https://www.chess.com"]

[Event "Titled Tuesday Blitz March 22 Late 2022"]
[White "Rudykh, Stepan"]
[Black "Zanette, Edgard Vinicius"]
[WhiteFideId "4180321"]
[BlackFideId "2109263"]
[WhiteElo "2159"]
[BlackElo "2182"]
[Result "1-0"]
[Round "10"]
[TimeControl "180+1"]
[Date "2022.03.22"]
[WhiteClock "0:00:16"]
[BlackClock "0:00:05"]

1. e4 {[%clk 0:03:00]}  c5 {[%clk 0:02:58]} 2. Nf3 {[%clk 0:03:01]}  d6 {[%clk 0:02:58]} 3. d4 {[%clk 0:03:02]}  cxd4 {[%clk 0:02:59]} 4. Nxd4 {[%clk 0:03:02]}  Nf6 {[%clk 0:02:59]} 5. Nc3 {[%clk 0:03:03]}  a6 {[%clk 0:02:59]} 6. Be3 {[%clk 0:03:04]}  e5 {[%clk 0:02:59]} 7. Nb3 {[%clk 0:03:04]}  Be7 {[%clk 0:02:57]} 8. h3 {[%clk 0:03:02]}  O-O {[%clk 0:02:53]} 9. g4 {[%clk 0:03:01]}  Be6 {[%clk 0:02:51]} 10. g5 {[%clk 0:03:01]}  Nfd7 {[%clk 0:02:50]} 11. h4 {[%clk 0:02:59]}  Nc6 {[%clk 0:02:42]} 12. Qf3 {[%clk 0:02:38]}  f5 {[%clk 0:02:39]} 13. gxf6 {[%clk 0:02:31]}  Nxf6 {[%clk 0:02:37]} 14. Bh3 {[%clk 0:02:19]}  Ng4 {[%clk 0:02:28]} 15. Qg3 {[%clk 0:02:13]}  h5 {[%clk 0:02:01]} 16. Bxg4 {[%clk 0:02:09]}  Bxg4 {[%clk 0:01:58]} 17. Nd5 {[%clk 0:02:09]}  Rf3 {[%clk 0:01:51]} 18. Qh2 {[%clk 0:01:59]}  Rh3 {[%clk 0:01:47]} 19. Qg1 {[%clk 0:01:45]}  Rxh1 {[%clk 0:01:09]} 20. Qxh1 {[%clk 0:01:44]}  Bxh4 {[%clk 0:01:06]} 21. Kd2 {[%clk 0:01:31]}  Bg5 {[%clk 0:00:53]} 22. Rg1 {[%clk 0:01:28]}  Bxe3+ {[%clk 0:00:46]} 23. Nxe3 {[%clk 0:01:28]}  Nd4 {[%clk 0:00:43]} 24. Nxg4 {[%clk 0:01:17]}  Nxb3+ {[%clk 0:00:38]} 25. axb3 {[%clk 0:01:15]}  hxg4 {[%clk 0:00:39]} 26. Rxg4 {[%clk 0:01:15]}  Qa5+ {[%clk 0:00:33]} 27. c3 {[%clk 0:01:14]}  Rf8 {[%clk 0:00:30]} 28. Qg2 {[%clk 0:01:02]}  Rf7 {[%clk 0:00:27]} 29. Rg6 {[%clk 0:00:58]}  Qb6 {[%clk 0:00:26]} 30. f3 {[%clk 0:00:55]}  Qxb3 {[%clk 0:00:26]} 31. Kc1 {[%clk 0:00:52]}  Qa2 {[%clk 0:00:20]} 32. Rxd6 {[%clk 0:00:46]}  Qa1+ {[%clk 0:00:20]} 33. Kc2 {[%clk 0:00:46]}  Qa4+ {[%clk 0:00:20]} 34. Kb1 {[%clk 0:00:45]}  Qe8 {[%clk 0:00:17]} 35. Qg5 {[%clk 0:00:44]}  Re7 {[%clk 0:00:15]} 36. Qf5 {[%clk 0:00:32]}  Rf7 {[%clk 0:00:07]} 37. Qg5 {[%clk 0:00:23]}  Re7 {[%clk 0:00:07]} 38. Rd5 {[%clk 0:00:22]}  b5 {[%clk 0:00:06]} 39. Qf5 {[%clk 0:00:20]}  Re6 {[%clk 0:00:05]} 40. Rc5 {[%clk 0:00:18]}  Qd7 {[%clk 0:00:05]} 41. Kc2 {[%clk 0:00:16]} 1-0


[Site "https://www.chess.com"]

[Event "Titled Tuesday Blitz March 22 Late 2022"]
[White "Rustemov, Alexander"]
[Black "Taboas Rodriguez, Daniel"]
[WhiteFideId "4119002"]
[BlackFideId "2208466"]
[WhiteElo "2789"]
[BlackElo "2429"]
[Result "1-0"]
[Round "10"]
[TimeControl "180+1"]
[Date "2022.03.22"]
[WhiteClock "0:00:41"]
[BlackClock "0:00:56"]

1. d4 {[%clk 0:03:00]}  Nf6 {[%clk 0:02:59]} 2. c4 {[%clk 0:03:00]}  g6 {[%clk 0:03:00]} 3. Nf3 {[%clk 0:03:00]}  Bg7 {[%clk 0:03:00]} 4. g3 {[%clk 0:03:00]}  b6 {[%clk 0:03:00]} 5. Bg2 {[%clk 0:03:00]}  Bb7 {[%clk 0:03:00]} 6. O-O {[%clk 0:03:00]}  O-O {[%clk 0:03:00]} 7. d5 {[%clk 0:03:01]}  Na6 {[%clk 0:03:00]} 8. Nc3 {[%clk 0:03:01]}  Nc5 {[%clk 0:03:01]} 9. Nd4 {[%clk 0:03:00]}  e5 {[%clk 0:03:01]} 10. Nb3 {[%clk 0:02:57]}  d6 {[%clk 0:03:00]} 11. e4 {[%clk 0:02:55]}  Nxb3 {[%clk 0:02:56]} 12. Qxb3 {[%clk 0:02:47]}  Nh5 {[%clk 0:02:53]} 13. f3 {[%clk 0:02:34]}  f5 {[%clk 0:02:53]} 14. Qc2 {[%clk 0:02:29]}  a5 {[%clk 0:02:47]} 15. Bd2 {[%clk 0:02:21]}  f4 {[%clk 0:02:39]} 16. g4 {[%clk 0:02:21]}  Nf6 {[%clk 0:02:39]} 17. h4 {[%clk 0:02:16]}  Nd7 {[%clk 0:02:37]} 18. Be1 {[%clk 0:02:11]}  Bf6 {[%clk 0:02:36]} 19. g5 {[%clk 0:02:11]}  Be7 {[%clk 0:02:37]} 20. Bh3 {[%clk 0:02:11]}  h6 {[%clk 0:02:33]} 21. Qg2 {[%clk 0:02:02]}  hxg5 {[%clk 0:02:31]} 22. hxg5 {[%clk 0:02:01]}  Bc8 {[%clk 0:02:30]} 23. Kf2 {[%clk 0:01:52]}  Kg7 {[%clk 0:02:27]} 24. Rg1 {[%clk 0:01:48]}  Rh8 {[%clk 0:02:27]} 25. Ke2 {[%clk 0:01:46]}  Nc5 {[%clk 0:02:22]} 26. Bxc8 {[%clk 0:01:43]}  Qxc8 {[%clk 0:02:22]} 27. Bf2 {[%clk 0:01:43]}  Qh3 {[%clk 0:02:21]} 28. Qxh3 {[%clk 0:01:28]}  Rxh3 {[%clk 0:02:22]} 29. Rg2 {[%clk 0:01:29]}  Rah8 {[%clk 0:02:22]} 30. Rag1 {[%clk 0:01:28]}  Kf7 {[%clk 0:02:14]} 31. Nb5 {[%clk 0:01:24]}  Bd8 {[%clk 0:02:13]} 32. b3 {[%clk 0:01:21]}  Ke7 {[%clk 0:02:10]} 33. Bxc5 {[%clk 0:01:18]}  bxc5 {[%clk 0:02:01]} 34. Rf1 {[%clk 0:01:17]}  Kd7 {[%clk 0:02:00]} 35. Kd3 {[%clk 0:01:10]}  R8h5 {[%clk 0:01:58]} 36. Ke2 {[%clk 0:01:08]}  Rh2 {[%clk 0:01:53]} 37. Rff2 {[%clk 0:01:06]}  Rxg2 {[%clk 0:01:53]} 38. Rxg2 {[%clk 0:01:07]}  Rxg5 {[%clk 0:01:53]} 39. Rxg5 {[%clk 0:01:06]}  Bxg5 {[%clk 0:01:54]} 40. Na7 {[%clk 0:01:01]}  Bh4 {[%clk 0:01:14]} 41. Nc6 {[%clk 0:01:00]}  a4 {[%clk 0:01:14]} 42. bxa4 {[%clk 0:01:00]}  Kc8 {[%clk 0:01:14]} 43. Na7+ {[%clk 0:00:53]}  Kb7 {[%clk 0:01:15]} 44. Nb5 {[%clk 0:00:54]}  Kb6 {[%clk 0:01:13]} 45. a5+ {[%clk 0:00:52]}  Kxa5 {[%clk 0:01:13]} 46. Nxc7 {[%clk 0:00:52]}  Kb4 {[%clk 0:01:11]} 47. Kd3 {[%clk 0:00:52]}  Ka3 {[%clk 0:01:10]} 48. Nb5+ {[%clk 0:00:49]}  Kxa2 {[%clk 0:01:07]} 49. Nxd6 {[%clk 0:00:49]}  Kb3 {[%clk 0:01:05]} 50. Nf7 {[%clk 0:00:47]}  Bf6 {[%clk 0:01:02]} 51. d6 {[%clk 0:00:47]}  g5 {[%clk 0:01:03]} 52. d7 {[%clk 0:00:46]}  g4 {[%clk 0:00:58]} 53. fxg4 {[%clk 0:00:45]}  f3 {[%clk 0:00:58]} 54. g5 {[%clk 0:00:42]}  Be7 {[%clk 0:00:56]} 55. g6 {[%clk 0:00:42]}  f2 {[%clk 0:00:56]} 56. Ke2 {[%clk 0:00:41]}  Kxc4 {[%clk 0:00:56]} 57. g7 {[%clk 0:00:41]} 1-0


[Site "https://www.chess.com"]

[Event "Titled Tuesday Blitz March 22 Late 2022"]
[White "Sanal, Vahap"]
[Black "Andreikin, Dmitry"]
[WhiteFideId "6300545"]
[BlackFideId "4158814"]
[WhiteElo "2603"]
[BlackElo "2736"]
[Result "0-1"]
[Round "10"]
[TimeControl "180+1"]
[Date "2022.03.22"]
[WhiteClock "0:00:04"]
[BlackClock "0:00:03"]

1. Nf3 {[%clk 0:03:00]}  Nf6 {[%clk 0:02:59]} 2. b3 {[%clk 0:03:01]}  d5 {[%clk 0:02:58]} 3. Bb2 {[%clk 0:03:01]}  Bg4 {[%clk 0:02:58]} 4. g3 {[%clk 0:03:01]}  Bxf3 {[%clk 0:02:57]} 5. exf3 {[%clk 0:03:01]}  e6 {[%clk 0:02:57]} 6. Bg2 {[%clk 0:03:02]}  c5 {[%clk 0:02:54]} 7. O-O {[%clk 0:03:03]}  Nc6 {[%clk 0:02:54]} 8. d3 {[%clk 0:03:02]}  g6 {[%clk 0:02:54]} 9. f4 {[%clk 0:03:03]}  Bg7 {[%clk 0:02:54]} 10. Nd2 {[%clk 0:03:03]}  O-O {[%clk 0:02:54]} 11. Nf3 {[%clk 0:03:01]}  b5 {[%clk 0:02:53]} 12. Ne5 {[%clk 0:02:56]}  Rc8 {[%clk 0:02:52]} 13. c4 {[%clk 0:02:54]}  a6 {[%clk 0:02:46]} 14. Rc1 {[%clk 0:02:49]}  Qb6 {[%clk 0:02:38]} 15. Nxc6 {[%clk 0:02:26]}  Rxc6 {[%clk 0:02:39]} 16. Bxf6 {[%clk 0:02:22]}  Bxf6 {[%clk 0:02:40]} 17. cxd5 {[%clk 0:02:22]}  exd5 {[%clk 0:02:38]} 18. Bxd5 {[%clk 0:02:23]}  Rd6 {[%clk 0:02:39]} 19. Be4 {[%clk 0:02:22]}  Bd4 {[%clk 0:02:37]} 20. f5 {[%clk 0:02:21]}  Rf6 {[%clk 0:02:21]} 21. Qg4 {[%clk 0:02:06]}  Kh8 {[%clk 0:02:18]} 22. Kg2 {[%clk 0:01:58]}  Qd6 {[%clk 0:02:14]} 23. fxg6 {[%clk 0:01:42]}  fxg6 {[%clk 0:02:13]} 24. f4 {[%clk 0:01:42]}  Qe6 {[%clk 0:02:13]} 25. Qxe6 {[%clk 0:01:36]}  Rxe6 {[%clk 0:02:14]} 26. Rc2 {[%clk 0:01:36]}  Kg7 {[%clk 0:02:13]} 27. Re2 {[%clk 0:01:27]}  Re7 {[%clk 0:02:03]} 28. Rc2 {[%clk 0:01:27]}  Kf6 {[%clk 0:01:58]} 29. g4 {[%clk 0:01:26]}  Ke6 {[%clk 0:01:58]} 30. h4 {[%clk 0:01:20]}  Kd6 {[%clk 0:01:58]} 31. f5 {[%clk 0:01:20]}  gxf5 {[%clk 0:01:56]} 32. Rxf5 {[%clk 0:01:20]}  Rxf5 {[%clk 0:01:54]} 33. Bxf5 {[%clk 0:01:21]}  h6 {[%clk 0:01:53]} 34. Be4 {[%clk 0:01:17]}  Rf7 {[%clk 0:01:53]} 35. g5 {[%clk 0:01:12]}  hxg5 {[%clk 0:01:50]} 36. hxg5 {[%clk 0:01:13]}  Ke5 {[%clk 0:01:41]} 37. g6 {[%clk 0:01:13]}  Rf4 {[%clk 0:01:34]} 38. Kg3 {[%clk 0:01:11]}  Rf8 {[%clk 0:01:24]} 39. Kg4 {[%clk 0:01:10]}  Rf4+ {[%clk 0:01:16]} 40. Kg3 {[%clk 0:01:11]}  Rf8 {[%clk 0:01:16]} 41. Rh2 {[%clk 0:01:11]}  Kf6 {[%clk 0:01:09]} 42. Rh7 {[%clk 0:01:09]}  Kg5 {[%clk 0:01:05]} 43. Rd7 {[%clk 0:00:55]}  Be5+ {[%clk 0:00:59]} 44. Kg2 {[%clk 0:00:55]}  Kf4 {[%clk 0:00:59]} 45. Bd5 {[%clk 0:00:40]}  Rf5 {[%clk 0:00:57]} 46. Be4 {[%clk 0:00:28]}  Rg5+ {[%clk 0:00:48]} 47. Kf2 {[%clk 0:00:29]}  Bd4+ {[%clk 0:00:40]} 48. Ke2 {[%clk 0:00:29]}  Rg3 {[%clk 0:00:28]} 49. Rf7+ {[%clk 0:00:28]}  Ke5 {[%clk 0:00:27]} 50. Re7+ {[%clk 0:00:18]}  Kf4 {[%clk 0:00:26]} 51. Rf7+ {[%clk 0:00:18]}  Ke5 {[%clk 0:00:27]} 52. a4 {[%clk 0:00:17]}  bxa4 {[%clk 0:00:20]} 53. bxa4 {[%clk 0:00:17]}  c4 {[%clk 0:00:21]} 54. Rf5+ {[%clk 0:00:15]}  Ke6 {[%clk 0:00:19]} 55. Ra5 {[%clk 0:00:09]}  Re3+ {[%clk 0:00:12]} 56. Kd2 {[%clk 0:00:06]}  c3+ {[%clk 0:00:13]} 57. Kd1 {[%clk 0:00:06]}  Rg3 {[%clk 0:00:10]} 58. Rxa6+ {[%clk 0:00:06]}  Ke5 {[%clk 0:00:11]} 59. Rc6 {[%clk 0:00:04]}  Rg1+ {[%clk 0:00:06]} 60. Kc2 {[%clk 0:00:05]}  Ra1 {[%clk 0:00:07]} 61. g7 {[%clk 0:00:03]}  Ra2+ {[%clk 0:00:07]} 62. Kb3 {[%clk 0:00:03]}  Rb2+ {[%clk 0:00:07]} 63. Ka3 {[%clk 0:00:03]}  Rb8 {[%clk 0:00:07]} 64. Rc7 {[%clk 0:00:02]}  Kd6 {[%clk 0:00:05]} 65. Rc6+ {[%clk 0:00:03]}  Kd7 {[%clk 0:00:05]} 66. Rc4 {[%clk 0:00:04]}  Bxg7 {[%clk 0:00:04]} 67. d4 {[%clk 0:00:04]}  Kd6 {[%clk 0:00:03]} 68. Rc6+ {[%clk 0:00:04]}  Kd7 {[%clk 0:00:03]} 69. Rxc3 {[%clk 0:00:04]}  Bf8+ {[%clk 0:00:03]} 70. Ka2 {[%clk 0:00:05]}  Rb4 {[%clk 0:00:04]} 71. Bc6+ {[%clk 0:00:04]}  Kd6 {[%clk 0:00:03]} 72. d5 {[%clk 0:00:05]}  Bg7 {[%clk 0:00:04]} 73. Rc2 {[%clk 0:00:06]}  Bd4 {[%clk 0:00:02]} 74. Ka3 {[%clk 0:00:06]}  Bc5 {[%clk 0:00:02]} 75. Ka2 {[%clk 0:00:07]}  Rb6 {[%clk 0:00:02]} 76. Rc4 {[%clk 0:00:06]}  Rb4 {[%clk 0:00:02]} 77. Rc3 {[%clk 0:00:05]}  Rd4 {[%clk 0:00:02]} 78. Kb3 {[%clk 0:00:04]}  Rb4+ {[%clk 0:00:02]} 79. Kc2 {[%clk 0:00:05]}  Bd4 {[%clk 0:00:02]} 80. Rd3 {[%clk 0:00:04]}  Kc5 {[%clk 0:00:02]} 81. Rf3 {[%clk 0:00:04]}  Kc4 {[%clk 0:00:02]} 82. Kd1 {[%clk 0:00:02]}  Rb2 {[%clk 0:00:02]} 83. Rh3 {[%clk 0:00:02]}  Bc3 {[%clk 0:00:01]} 84. d6 {[%clk 0:00:02]}  Rd2+ {[%clk 0:00:01]} 85. Kc1 {[%clk 0:00:02]}  Rxd6 {[%clk 0:00:02]} 86. Be8 {[%clk 0:00:02]}  Kb4 {[%clk 0:00:02]} 87. Rh4+ {[%clk 0:00:01]}  Kb3 {[%clk 0:00:02]} 88. Bf7+ {[%clk 0:00:02]}  Ka3 {[%clk 0:00:02]} 89. Rh3 {[%clk 0:00:03]}  Kb4 {[%clk 0:00:02]} 90. Kc2 {[%clk 0:00:03]}  Rd2+ {[%clk 0:00:02]} 91. Kc1 {[%clk 0:00:04]}  Rf2 {[%clk 0:00:02]} 92. Rh4+ {[%clk 0:00:04]}  Ka3 {[%clk 0:00:02]} 93. Rh3 {[%clk 0:00:05]}  Kb4 {[%clk 0:00:02]} 94. a5 {[%clk 0:00:05]}  Rxf7 {[%clk 0:00:02]} 95. a6 {[%clk 0:00:04]}  Bd4 {[%clk 0:00:02]} 96. Kc2 {[%clk 0:00:03]}  Kc4 {[%clk 0:00:02]} 97. Rh2 {[%clk 0:00:03]}  Ra7 {[%clk 0:00:01]} 98. Kd2 {[%clk 0:00:02]}  Rxa6 {[%clk 0:00:01]} 99. Re2 {[%clk 0:00:02]}  Ra3 {[%clk 0:00:01]} 100. Kc2 {[%clk 0:00:03]}  Ra2+ {[%clk 0:00:01]} 101. Kd1 {[%clk 0:00:03]}  Ra1+ {[%clk 0:00:01]} 102. Kc2 {[%clk 0:00:04]}  Rg1 {[%clk 0:00:01]} 103. Kd2 {[%clk 0:00:04]}  Rg5 {[%clk 0:00:02]} 104. Kc2 {[%clk 0:00:05]}  Rb5 {[%clk 0:00:03]} 105. Kd2 {[%clk 0:00:05]}  Rb6 {[%clk 0:00:03]} 106. Kc2 {[%clk 0:00:06]}  Bc3 {[%clk 0:00:03]} 107. Re4+ {[%clk 0:00:06]}  Bd4 {[%clk 0:00:04]} 108. Re2 {[%clk 0:00:07]}  Ra6 {[%clk 0:00:04]} 109. Kd2 {[%clk 0:00:08]}  Ra5 {[%clk 0:00:04]} 110. Kc2 {[%clk 0:00:08]}  Ra1 {[%clk 0:00:04]} 111. Kd2 {[%clk 0:00:09]}  Rb1 {[%clk 0:00:04]} 112. Kc2 {[%clk 0:00:09]}  Rb3 {[%clk 0:00:04]} 113. Kd2 {[%clk 0:00:09]}  Rc3 {[%clk 0:00:04]} 114. Re4 {[%clk 0:00:09]}  Rd3+ {[%clk 0:00:03]} 115. Kc2 {[%clk 0:00:09]}  Rg3 {[%clk 0:00:03]} 116. Re2 {[%clk 0:00:09]}  Be3 {[%clk 0:00:04]} 117. Kd1 {[%clk 0:00:08]}  Kc3 {[%clk 0:00:03]} 118. Rc2+ {[%clk 0:00:08]}  Kd3 {[%clk 0:00:03]} 119. Rd2+ {[%clk 0:00:08]}  Ke4 {[%clk 0:00:03]} 120. Ra2 {[%clk 0:00:08]}  Rg1+ {[%clk 0:00:03]} 121. Kc2 {[%clk 0:00:08]}  Bd4 {[%clk 0:00:03]} 122. Kb3 {[%clk 0:00:08]}  Kd3 {[%clk 0:00:03]} 123. Kb4 {[%clk 0:00:05]}  Rb1+ {[%clk 0:00:03]} 124. Ka5 {[%clk 0:00:05]}  Kc4 {[%clk 0:00:02]} 125. Rc2+ {[%clk 0:00:06]}  Bc3+ {[%clk 0:00:02]} 126. Ka6 {[%clk 0:00:06]}  Kd4 {[%clk 0:00:03]} 127. Rh2 {[%clk 0:00:06]}  Kd5 {[%clk 0:00:03]} 128. Rh5+ {[%clk 0:00:06]}  Be5 {[%clk 0:00:03]} 129. Ka5 {[%clk 0:00:07]}  Re1 {[%clk 0:00:02]} 130. Rg5 {[%clk 0:00:07]}  Kc5 {[%clk 0:00:02]} 131. Ka4 {[%clk 0:00:07]}  Kc4 {[%clk 0:00:03]} 132. Ka5 {[%clk 0:00:07]}  Bd4 {[%clk 0:00:03]} 133. Ka6 {[%clk 0:00:07]}  Re7 {[%clk 0:00:03]} 134. Rg7 {[%clk 0:00:03]}  Rxg7 {[%clk 0:00:03]} 135. Ka5 {[%clk 0:00:04]}  Ra7# {[%clk 0:00:03]} 0-1


[Site "https://www.chess.com"]